Cogmind - Beta 9.2 @@@ ROGUE MODE // 2019.11.12 @ 08:53:11 Player: Demise Result: Self-destructed Performance ------------- Evolutions (2) 1000 Regions Visited (7) 1400 Robots Destroyed (34) 170 Value Destroyed (430) 430 Prototype IDs (22) 440 Alien Tech Used (0) 0 Bonus (300) 300 TOTAL SCORE: 3740 Bonus ------- Aligned with FarCom 300 Cogmind --------- Core Integrity 495/550 Matter 229/300 Energy 250/250 System Corruption 0% Temperature Cool (0) Movement Rolling (120) Ox3 Location -8/Materials Parts ------- > --- POWER (1) -------- Ion Engine > --- PROPULSION (2) --- Armored Wheel Armored Wheel > --- UTILITY (6) ------ Cooling System High-capacity Storage Unit High-capacity Storage Unit Advanced Weight Redist. System Improved Terrain Scanner Seismic Analyzer > --- WEAPON (2) ------- High-powered Shotgun Bore Cannon > --- INVENTORY (20) --- Light Nuclear Core Light Nuclear Core Light Angular Momentum Engine Armored Treads Carbon-fiber Leg Armored Wheel High-capacity Storage Unit High-capacity Storage Unit High-capacity Storage Unit Large Matter Pod (150) Sensor Array Chronowheel Shock Rifle Particle Gun Ion Cannon Light Assault Rifle Light Assault Rifle Grenade Launcher Mining Laser Peak State ------------ > --- POWER ------------ Light Ion Engine > --- PROPULSION ------- Armored Wheel Armored Wheel > --- UTILITY ---------- Cooling System High-capacity Storage Unit High-capacity Storage Unit Advanced Weight Redist. System Seismic Analyzer Phase Shifter > --- WEAPON ----------- High-powered Shotgun Bore Cannon > --- INVENTORY -------- Ion Engine Armored Wheel High-capacity Storage Unit High-capacity Storage Unit High-capacity Storage Unit Large Matter Pod Sensor Array Improved Terrain Scanner Chronowheel Shock Rifle Light Assault Rifle Light Assault Rifle Grenade Launcher Mining Laser Mining Laser [Rating: 29] Favorites ----------- Power Fission Core Engine Ion Engine Power Core Fission Core Propulsion Armored Wheel Leg Aluminum Leg Wheel Armored Wheel Utility High-capacity Storage Unit Device Improved Terrain Scanner Storage High-capacity Storage Unit Processor Seismic Analyzer Protection Propulsion Shielding Weapon Light Assault Rifle Ballistic Gun Light Assault Rifle Ballistic Cannon Bore Cannon Launcher Grenade Launcher Special Weapon Mining Laser Build | -11 -10 -10 -9 -9 -9 -8 -8 ------- Run | Scr Mat Min Mat Min Exi Min Mat Slots Evolved 4 | . . . 2 . . . 2 Power . | . . . . . . . . Propulsion . | . . . . . . . . Utility 4 | . . . 2 . . . 2 Weapon . | . . . . . . . . Parts Attached 35 | 4 5 6 6 5 1 4 4 Power 3 | . . 1 . . . 1 1 Engine 2 | . . . . . . 1 1 Core 1 | . . 1 . . . . . Reactor . | . . . . . . . . Propulsion 4 | . . 2 2 . . . . Treads . | . . . . . . . . Leg . | . . . . . . . . Wheel 4 | . . 2 2 . . . . Hover . | . . . . . . . . Flight . | . . . . . . . . Utility 16 | 4 2 . 2 3 1 1 3 Device 11 | 2 1 . 2 2 . 1 3 Storage 2 | . 1 . . . 1 . . Processor 2 | 2 . . . . . . . Hackware . | . . . . . . . . Protection 1 | . . . . 1 . . . Artifact . | . . . . . . . . Weapon 12 | . 3 3 2 2 . 2 . Energy Gun . | . . . . . . . . Energy Cannon . | . . . . . . . . Ballistic Gun 5 | . 1 2 1 . . 1 . Ballistic Cannon 2 | . . 1 . 1 . . . Launcher 3 | . 1 . . 1 . 1 . Special Weapon 2 | . 1 . 1 . . . . Impact Weapon . | . . . . . . . . Slashing Weapon . | . . . . . . . . Piercing Weapon . | . . . . . . . . Special Melee Weapon . | . . . . . . . . Unidentified Prototypes . | . . . . . . . . Parts Lost 7 | . . 3 . 1 . 1 2 Power 2 | . . . . . . 1 1 Propulsion 1 | . . 1 . . . . . Utility 1 | . . . . . . . 1 Weapon 3 | . . 2 . 1 . . . Highest Loss Streak 3 | . . 3 . 1 . 1 2 Average Slot Usage (%) 96 | . 98 95 97 97 88 99 98 Engine 5 | . 14 3 . . . 10 8 Core 6 | . . 10 11 11 11 . . Leg 7 | . 28 12 . . . . . Wheel 15 | . . 11 22 22 22 22 18 Device 12 | . 10 . 19 22 18 11 26 Storage 13 | . 2 14 11 11 14 22 18 Processor 12 | . 14 14 11 11 11 11 9 Ballistic Gun 11 | . 20 15 11 8 . 10 9 Ballistic Cannon 7 | . . 10 4 4 11 11 9 Special Weapon 1 | . 6 1 6 . . . . Naked Turns . | . . . . . . . . Heaviest Build 84 | 12 39 52 56 56 84 80 84 Greatest Support 33 | 20 20 32 32 24 24 24 33 Greatest Overweight (x) 5 | . 1 5 1 2 3 3 3 Average Overweight (x) 1 | . . 2 1 2 2 3 2 Largest Inventory Capacity 20 | 6 12 12 12 12 20 20 20 Average Capacity 12 | 4 5 12 12 12 14 20 20 Most Carried 19 | 6 8 12 12 12 15 15 19 Average Carried 10 | 4 4 9 10 11 12 14 16 Final Capacity 20 | 4 12 12 12 12 20 20 20 Final Carried 19 | 4 8 12 11 12 15 15 19 Class Distribution -------------------- 41% | Mutant 26% | Scavenger-Mutant 21% | Hauler-Mutant 6% | Scavenger-Skirmisher 3% | Hauler-Skirmisher Dominant Class ---------------- Mutant | -10/Materials Scavenger-Mutant | -10/Mines Scavenger-Mutant | -9/Materials Mutant | -9/Mines Scavenger-Mutant | -9/Exiles Hauler-Mutant | -8/Mines Hauler-Skirmisher | -8/Materials Resources | -11 -10 -10 -9 -9 -9 -8 -8 ----------- Run | Scr Mat Min Mat Min Exi Min Mat Matter Collected 1081 | 376 52 308 84 103 . 43 115 Remotely 102 | 102 . . . . . . . Salvage Created 552 | 275 15 33 35 91 . 29 74 Parts 51 | 32 3 . 1 7 . 7 1 Haulers Intercepted . | . . . . . . . . Recyclers Shooed . | . . . . . . . . Parts Field Recycled . | . . . . . . . . Retrieved Matter . | . . . . . . . . Parts Self-Destructed . | . . . . . . . . Prevented . | . . . . . . . . Kills | -11 -10 -10 -9 -9 -9 -8 -8 ------- Run | Scr Mat Min Mat Min Exi Min Mat Combat Hostiles Destroyed 19 | . 3 3 1 6 . 4 2 Guns 8 | . 1 3 . 2 . 1 1 Cannons 5 | . . . 1 2 . 1 1 AOE 6 | . 2 . . 2 . 2 . Classes Destroyed 8 | 3 1 1 1 2 . . . Worker 4 | 4 . . . . . . . Tunneler 10 | 9 . . . 1 . . . Recycler 1 | 1 . . . . . . . Swarmer 11 | . 3 . . 4 . 4 . Grunt 3 | . . . . 1 . . 2 Duelist 1 | . . . . 1 . . . Sentry 1 | . . . 1 . . . . Assembled 3 | . . 3 . . . . . Best Kill Streak 4 | 4 3 3 1 4 . 3 2 Combat Bots Only 4 | . 3 3 1 4 . 3 2 Max Kills in Single Turn 3 | 1 2 1 1 3 . 3 1 Gunslinging . | . . . . . . . . Exploded 2 | . 2 . . 2 . 2 . Melee . | . . . . . . . . Uniques/NPCs Destroyed . | . . . . . . . . Combat | -11 -10 -10 -9 -9 -9 -8 -8 -------- Run | Scr Mat Min Mat Min Exi Min Mat Damage Taken 1163 | . 40 427 128 171 . 72 325 Core 139 | . 22 40 . 15 . 7 55 Absorbed by Shields . | . . . . . . . . Core Remaining (%) 89 | 100 . 75 . . . 94 . Volleys Fired 106 | 48 7 27 6 8 . 4 6 Largest 2 | 2 2 2 2 2 . 2 2 Hottest 100 | 40 100 40 100 82 . 87 82 Shots Fired 200 | 96 11 50 10 13 . 8 12 Gun 168 | 96 5 48 4 6 . 3 6 Cannon 22 | . . 2 4 6 . 4 6 Launcher 6 | . 4 . . 1 . 1 . Special 4 | . 2 . 2 . . . . Kinetic 190 | 96 5 50 8 12 . 7 12 Thermal 4 | . 2 . 2 . . . . Explosive 6 | . 4 . . 1 . 1 . Electromagnetic . | . . . . . . . . Robot Hit Streak 12 | 12 2 5 4 7 . 1 8 Robot Miss Streak 5 | 4 1 3 2 3 . 5 2 Penetration Max . | . . . . . . . . Secondary Targets . | . . . . . . . . Shots Hit Robots 121 | 68 2 27 6 8 . 2 8 Core Hits 71 | 28 6 15 2 10 . 4 6 Critical Hits 11 | 2 . 1 2 3 . 2 1 Critical Kills 4 | 1 . . 1 1 . 1 . Critical Parts Destroyed 7 | 1 . 1 1 2 . 1 1 Melee Attacks . | . . . . . . . . Impact . | . . . . . . . . Slashing . | . . . . . . . . Piercing . | . . . . . . . . Sneak Attacks . | . . . . . . . . Combat Hostiles . | . . . . . . . . Follow-up Attacks . | . . . . . . . . Damage Inflicted 1713 | 554 92 229 143 362 . 185 148 Guns 1114 | 554 18 221 96 87 . 18 120 Cannons 243 | . . . 47 112 . 56 28 Explosions 348 | . 74 . . 163 . 111 . Melee . | . . . . . . . . Ramming 8 | . . 8 . . . . . Kinetic 1357 | 554 18 221 143 199 . 74 148 Thermal 43 | . . . . 43 . . . Explosive 305 | . 74 . . 120 . 111 . Electromagnetic . | . . . . . . . . Impact . | . . . . . . . . Slashing . | . . . . . . . . Piercing . | . . . . . . . . Highest Corruption 5 | . . 5 . . . . . Average Corruption 5 | . . 5 . . . . . Corruption Purged . | . . . . . . . . Effects 11 | . . 11 . . . . . Matter Fused 2 | . . 2 . . . . . Heat Flow Errors 1 | . . 1 . . . . . Energy Discharges 2 | . . 2 . . . . . Data Loss (minor) 1 | . . 1 . . . . . Data Loss (major) 1 | . . 1 . . . . . Misfires 4 | . . 4 . . . . . Overload Shots . | . . . . . . . . Overflow Damage 7 | . . . . 7 . . . Projectiles . | . . . . . . . . Explosions 7 | . . . . 7 . . . Melee . | . . . . . . . . Knockbacks 4 | . . . . 3 . 1 . Impact . | . . . . . . . . Kinetic 3 | . . . . 2 . 1 . Secondary 1 | . . . . 1 . . . Self-Inflicted Damage 17 | . . 4 . 13 . . . Shots 1 | . . . . 1 . . . Rammed 1 | . . 1 . . . . . Targets Rammed 1 | . . 1 . . . . . Kicked . | . . . . . . . . Crushed . | . . . . . . . . Highest Temperature 273 | . 20 273 111 116 . 12 . Average Temperature 47 | . 9 68 48 52 . 6 . Received Heat Transfer 258 | . . 120 36 . . . 102 Siege Activations . | . . . . . . . . Robots Corrupted . | . . . . . . . . Combat Hostiles . | . . . . . . . . Parts Fried . | . . . . . . . . Impact Corruptions . | . . . . . . . . Robots Melted . | . . . . . . . . Combat Hostiles . | . . . . . . . . Parts Melted . | . . . . . . . . Heat Transferred 50 | . . . . 50 . . . Parts Sabotaged . | . . . . . . . . Parts Stolen . | . . . . . . . . Parts Stripped . | . . . . . . . . Power Chain Reactions . | . . . . . . . . Missiles Intercepted . | . . . . . . . . Alert | -11 -10 -10 -9 -9 -9 -8 -8 ------- Run | Scr Mat Min Mat Min Exi Min Mat Peak Influence 173 | 70 131 51 60 173 . 109 76 Average Influence 63 | 39 105 21 29 135 . 100 59 Maximum Alert Level . | . . . . . . . . Low Security (%) 100 | 100 100 100 100 100 . 100 100 Level 1 . | . . . . . . . . Level 2 . | . . . . . . . . Level 3 . | . . . . . . . . Level 4 . | . . . . . . . . Level 5 . | . . . . . . . . High Security . | . . . . . . . . Max Security . | . . . . . . . . Squads Dispatched 2 | . . . . . . . 2 Investigation 1 | . . . . . . . 1 Extermination . | . . . . . . . . Reinforcement 1 | . . . . . . . 1 Assault . | . . . . . . . . Garrison . | . . . . . . . . Intercept . | . . . . . . . . Construction Impeded . | . . . . . . . . Haulers Reinforced . | . . . . . . . . Stealth | -11 -10 -10 -9 -9 -9 -8 -8 --------- Run | Scr Mat Min Mat Min Exi Min Mat Distress Signals . | . . . . . . . . Communications Jammed . | . . . . . . . . Distress Signals . | . . . . . . . . Times Spotted 38 | . 5 10 4 6 . 6 7 Peak Tracking Total 6 | . 3 6 2 4 . 4 6 Tactical Retreats 5 | . . 2 1 . . 2 . Traps | -11 -10 -10 -9 -9 -9 -8 -8 ------- Run | Scr Mat Min Mat Min Exi Min Mat Traps Triggered . | . . . . . . . . Indirectly . | . . . . . . . . Trap Hack Attempts . | . . . . . . . . Triggered . | . . . . . . . . Disarmed . | . . . . . . . . Reprogrammed . | . . . . . . . . Reused . | . . . . . . . . Traps Extracted . | . . . . . . . . Installed . | . . . . . . . . Triggered . | . . . . . . . . Machines | -11 -10 -10 -9 -9 -9 -8 -8 ---------- Run | Scr Mat Min Mat Min Exi Min Mat Machines Disabled 2 | . . . . 1 . 1 . Max in Single Turn 1 | . . . . 1 . 1 . Machines Sabotaged . | . . . . . . . . Garrisons Compromised . | . . . . . . . . Overloaded Fab Kills . | . . . . . . . . Fab Network Shutdowns . | . . . . . . . . Hacking | -11 -10 -10 -9 -9 -9 -8 -8 --------- Run | Scr Mat Min Mat Min Exi Min Mat Machines Accessed 7 | . 2 . 2 . 1 . 2 Terminals 5 | . 1 . 2 . . . 2 Fabricators . | . . . . . . . . Repair Stations 1 | . 1 . . . . . . Recycling Units . | . . . . . . . . Scanalyzers . | . . . . . . . . Garrison Access . | . . . . . . . . Total Hacks 16 | . 5 . 4 . 1 . 6 Successful 7 | . 3 . 1 . 1 . 2 Failed 9 | . 2 . 3 . . . 4 Catastrophic 1 | . 1 . . . . . . Database Lockouts . | . . . . . . . . Manual 11 | . 1 . 4 . 1 . 5 Terminals 12 | . 2 . 4 . . . 6 Fabricators . | . . . . . . . . Repair Stations 3 | . 3 . . . . . . Recycling Units . | . . . . . . . . Scanalyzers . | . . . . . . . . Garrison Access . | . . . . . . . . Terminal Hacks 2 | . 1 . . . 1 . . Branch Access Points 1 | . 1 . . . . . . EX-Prototype ID Bank 1 | . . . . . 1 . . Fabricator Hacks . | . . . . . . . . Repair Station Hacks 2 | . 2 . . . . . . Scan Component 1 | . 1 . . . . . . Repair 1 | . 1 . . . . . . Recycling Unit Hacks . | . . . . . . . . Scanalyzer . | . . . . . . . . Garrison Access Hacks . | . . . . . . . . Unauthorized Hacks 13 | . 1 . 5 . . . 7 Terminals 3 | . . . 1 . . . 2 Botnet 3 | . . . 1 . . . 2 Fabricators . | . . . . . . . . Repair Stations . | . . . . . . . . Recycling Units . | . . . . . . . . Scanalyzers . | . . . . . . . . Garrison Access . | . . . . . . . . Data Cores Recovered . | . . . . . . . . Used . | . . . . . . . . Hacking Detections 5 | . 1 . 2 . . . 2 Full Trace Events 2 | . 1 . . . . . 1 Feedback Events . | . . . . . . . . Feedback Blocked . | . . . . . . . . Robot Schematics Acquired . | . . . . . . . . Robots Built . | . . . . . . . . Matter . | . . . . . . . . Time . | . . . . . . . . Total Robot Build Rating . | . . . . . . . . Part Schematics Acquired . | . . . . . . . . Parts Built . | . . . . . . . . Matter . | . . . . . . . . Time . | . . . . . . . . Total Part Build Rating . | . . . . . . . . Parts Repaired 1 | . 1 . . . . . . Time 32 | . 32 . . . . . . Parts Recycled . | . . . . . . . . Recycled Matter . | . . . . . . . . Retrieved Matter . | . . . . . . . . Retrieved Components . | . . . . . . . . Parts Scanalyzed . | . . . . . . . . Part Schematics Acquired . | . . . . . . . . Parts Damaged . | . . . . . . . . Bothacking | -11 -10 -10 -9 -9 -9 -8 -8 ------------ Run | Scr Mat Min Mat Min Exi Min Mat Used RIF Installer . | . . . . . . . . Robots Hacked . | . . . . . . . . Non-combat . | . . . . . . . . Combat . | . . . . . . . . Robot Hacks Applied . | . . . . . . . . Relay Couplers Released . | . . . . . . . . Robots Rewired . | . . . . . . . . Allies Hacked . | . . . . . . . . Hacks Repelled . | . . . . . . . . Allies | -11 -10 -10 -9 -9 -9 -8 -8 -------- Run | Scr Mat Min Mat Min Exi Min Mat Total Allies . | . . . . . . . . Largest Group . | . . . . . . . . Highest-Rated Group . | . . . . . . . . Highest-Rated Ally . | . . . . . . . . Total Orders . | . . . . . . . . Ally Attacks . | . . . . . . . . Total Damage . | . . . . . . . . Kills . | . . . . . . . . Allies Corrupted . | . . . . . . . . Allies Melted . | . . . . . . . . Intel | -11 -10 -10 -9 -9 -9 -8 -8 ------- Run | Scr Mat Min Mat Min Exi Min Mat Robot Analysis Total . | . . . . . . . . Derelict Logs Recovered . | . . . . . . . . Drone Launches . | . . . . . . . . Drone Recoveries . | . . . . . . . . Exploration | -11 -10 -10 -9 -9 -9 -8 -8 ------------- Run | Scr Mat Min Mat Min Exi Min Mat Turns Passed 2460 | 348 288 539 234 183 303 387 178 Spaces Moved 1566 | 107 176 320 159 124 264 305 111 Core . | . . . . . . . . Treads . | . . . . . . . . Legs 371 | 107 176 88 . . . . . Wheels 1195 | . . 232 159 124 264 305 111 Hover . | . . . . . . . . Flight . | . . . . . . . . Fastest Speed 100 | 120 120 110 100 110 110 120 110 Average Speed 121 | 120 125 143 106 110 112 120 118 Slowest Speed 270 | 120 150 270 110 110 120 120 120 Overloaded Moves . | . . . . . . . . Propulsion Burnouts . | . . . . . . . . Robots Hopped . | . . . . . . . . Cave-ins Triggered . | . . . . . . . . Exploration Rate (%) 38 | 3 31 63 19 37 69 69 13 Regions Visited 7 Branch Regions 4 Pre-discovered Areas . | . . . . . . . . Known Exits Taken 1 | . 1 . . . . . . Unknown Exits Taken 6 | 1 . 1 1 1 1 1 . Scrap Searched 4 | . . 2 . 1 . 1 . Spaces Dug 4 | . 2 . 2 . . . . Terrain Destroyed 50 | . 22 . 4 15 . 4 5 Melee . | . . . . . . . . Projectile 13 | . 2 . 4 1 . 1 5 AOE 37 | . 20 . . 14 . 3 . Actions | -11 -10 -10 -9 -9 -9 -8 -8 --------- Run | Scr Mat Min Mat Min Exi Min Mat Total 1939 | 251 231 360 211 156 269 316 145 Wait 184 | 80 34 2 33 18 . 3 14 Move 1559 | 106 175 319 158 123 263 304 111 Hop . | . . . . . . . . Pick Up 32 | 5 7 3 3 1 4 1 8 Fast Attach 11 | 2 1 4 1 . . 1 2 Attach 6 | . . 1 2 . . 1 2 Detach 2 | . . 2 . . . . . Swap 18 | 2 4 1 3 5 1 2 . Drop 20 | 8 3 . 5 1 1 . 2 Fire 106 | 48 7 27 6 8 . 4 6 Melee . | . . . . . . . . Ram 1 | . . 1 . . . . . Kick . | . . . . . . . . Crush . | . . . . . . . . Escape Stasis . | . . . . . . . . Rewire . | . . . . . . . . Trap . | . . . . . . . . Miscellaneous . | . . . . . . . . Route ------- -11/Scrapyard -10/Materials (discovered 2 exits: Mat / *Min) -10/Mines -9/Materials -9/Mines -9/Exiles (discovered 2 exits: [*Min x2]) -8/Mines (discovered 2 exits: *Mat x2) -8/Materials History --------- Turn | Location | Event 12 | -11/Scrapyard | Discovered new exit (range 3) 349 | -11/Scrapyard | Entered Materials 350 | -10/Materials | Build established: Mutant 465 | -10/Materials | Identified exit to Mines 506 | -10/Materials | Discovered new exit (range 15) 573 | -10/Materials | Repaired Imp. Terrain Scanner 637 | -10/Materials | Entered Mines 659 | -10/Mines | Assembled infested the area 664 | -10/Mines | Assisted by a Guerilla fighting off Assembled 782 | -10/Mines | Lost 3 parts (1n2w) 926 | -10/Mines | Discovered new exit (range 4) 1071 | -10/Mines | Received a Rocket Launcher from a helpful Derelict 1176 | -10/Mines | Entered Materials 1176 | -9/Materials | Evolved 2 slots: Utility x2 1358 | -9/Materials | Discovered new exit (range 10) 1410 | -9/Materials | Entered Mines 1428 | -9/Mines | Met a Derelict bent on vengeance 1588 | -9/Mines | Deemed a non-threat by the Exiles lab entrance 1589 | -9/Mines | Discovered new exit (range 5) 1593 | -9/Mines | Entered Exiles 1610 | -9/Exiles | Discovered new exit (range 15) 1623 | -9/Exiles | Met 8R-AWN 1640 | -9/Exiles | Met EX-HEX 1674 | -9/Exiles | Met EX-BIN 1686 | -9/Exiles | Aligned with FarCom system 1687 | -9/Exiles | Given EX-Vault access code 1716 | -9/Exiles | Opened EX-Vault 1726 | -9/Exiles | Found Chronowheel 1750 | -9/Exiles | Warned to stay clear of 0b10 Research branches 1781 | -9/Exiles | Met EX-DEC 1886 | -9/Exiles | Discovered new exit (range 10) 1896 | -9/Exiles | Left Exiles lab with Chronowheel 1896 | -9/Exiles | Entered Mines 2106 | -8/Mines | Build established: Hauler-Mutant 2195 | -8/Mines | Discovered new exit (range 8) 2212 | -8/Mines | Discovered new exit (range 6) 2283 | -8/Mines | Entered Materials 2283 | -8/Materials | Evolved 2 slots: Utility x2 2461 | -8/Materials | Self-destructed Last Messages --------------- 02384_ U-05 Engineer builds a Wall. 02384_ U-05 Engineer lays Concrete. 02385_ Acquired Aluminum Leg. 02386_ U-05 Engineer builds a Wall. 02388_ Acquired Particle Gun. 02390_ U-05 Engineer lays Concrete. 02415_ Connecting with Terminal... >>Trojan(Botnet) Trojan loaded successfully. Testing... Terminal linked with 1 system. Awaiting botnet instructions. 02422_ O-24 Administrator: "IFF HANDSHAKE FAILED. SECURING TERMINAL." 02427_ ALERT: Hostiles spotted, dispatching reinforcements to Terminal M003. 02428_ K-01 Serf collects debris. 02443_ Dropped Aluminum Leg. 02449_ Acquired Arm. Treads. 02453_ Dropped Mining Laser. 02453_ Acquired Ion Cannon. 02455_ R-06 Scavenger collects Aluminum Leg. Map ----- +----------------------------------------------------+ | ?????????????????????????????????????????????????? | | ?????????????????????????????????????????????????? | | ?????????????????????????????????????????????????? | | ???????????????????????????????????????????##????# | | ???????????????????????????? ????????? ????????? | | ????????????????????????"?" ????????? #??????? | | ??????????????????????? """ ????????? +?? ???? | | ????????????????????? ????????? #?? ???? | | ???????????????????? ????"???? ###?#?+# | | ???????????????????? ]] ##?????## ###### ? | | ???????????????????? ]] ###+### ???# | | ????????????????????? ] ? ? ? | | ???????????????????? ? #??#### | | ?????????????????#? ???? [[ #???### | | ????????????????????????## [[ ##?##" | | ??????????????#?? ????? ?# #?#?##" | | ??????????????#?"?? ??? ?# #?### " | | ??????????????? ?"????"??# #?#?##" | | ??????????????? ??"???? ?# #??## " | | ??????????????????? ????## #???# " | | ????????????????????????## ########" #??## " | | ??????????????????? ????+ ##??#??## ##?###" | | ????????????????????????####+#####???# ####### | | ??????????????#?#?????#?# #???# | | ???????????????????#??### ##??# T | | ???????????????#????????#@ #?#?# | | ????????????????????????# """ #??## ####T## | | ????????????????????????# r """""#???#######?####? | | ???????????#??##????????# """""#####???#?#??#?#? | | ??????????#????????#???## """""#???#?????#??##?? | | ???????????????##????##?#| """ #??#???#??#?#?#?? | | ????????????????????#???# #?##?????#?????#? | | ?????????????##????#?#?###########?#?????????#???? | | ????????????????????#??#?????????????##???????#??? | | ???????????????#???????????#??????????##?????????? | | ???????????????#??#???#?????#?????##?#????#????##? | | | | | | | | | | | | | | | | | | | | | | | | | | | | | +----------------------------------------------------+ Best States ------------- Heat Dissipation 53 Energy Generation 18 Energy Capacity 310 Matter Stores 300 Matter Capacity 300 Sight Range 16 Robot Scan Range 10 Terrain Scan Range 16 Terrain Scan Density 60 Additional Mass Support 9 Phase Shifting 5 Evasion (%) 45 Item Schematics ----------------- None Robot Schematics ------------------ None Fabricated ------------ Nothing Alien Tech Used ----------------- None Achievements -------------- None Challenges ------------ None Game ------ Seed HeavySiegeNanovents Manual? 0 Play Time 00:21:56 Cumulative 114.2 hours Start 2019.11.12 @ 08:23:59 End 2019.11.12 @ 08:53:11 Sessions 1 Manual Loads 0 Difficulty Rogue Special Mode None Game No. 151 Rogue 140 Adventurer 11 Explorer 0 Win Type - Total 0 Types 0/0/0/0/0/0/0 Lore% 43 Gallery% 54 Achievement% 37 Wizard Run 0 Options --------- ASCII 0 Keyboard 1 Movement Numpad Keybinds 0 Fullscreen 1 Font 12/Terminus Map View 83x54 Tactical HUD 1 Map Filters NONE Filters NONE Steam 1 RUN: fb08022a-e71d-4562-bba4-fa64d0f66675